bitfinex-derivatives/quotes_ETHF0:USTF0_20250730
["timestamp","ask_amount","ask_price","bid_price","bid_amount"]
[1753866728291,1.9795,3808.6,3808.5,0.26]
[1753866728471,0.423,3808.6,3808.5,0.26]
[1753866728665,2.4185,3809.0,3808.9,0.2462]
[1753866728869,1.9795,3809.0,3808.9,0.26]
[1753866729069,1.9795,3809.0,3808.9,0.78508]
[1753866729465,40.8,3809.5,3808.9,0.70518]
[1753866729466,0.948,3809.5,3808.9,0.70518]
[1753866729673,1.9795,3809.0,3808.9,0.1801]
[1753866729868,2.4185,3809.0,3808.9,0.1801]
[1753866730064,2.4185,3809.0,3808.9,0.26]
[1753866731468,1.9795,3809.0,3808.9,0.26]
[1753866731671,2.4185,3808.5,3808.4,0.77134]
[1753866731876,2.4185,3808.5,3808.4,0.78514]
[1753866732170,1.9795,3808.5,3808.4,0.78514]
[1753866732376,0.9955,3808.5,3808.4,0.78514]
[1753866733472,1.2822,3808.5,3808.4,0.78514]
[1753866733978,1.9795,3808.5,3808.4,0.78514]
[1753866734277,2.4185,3808.5,3808.4,0.2462]
[1753866734479,2.4185,3808.5,3808.4,0.0799]
[1753866734675,2.4185,3808.5,3808.3,0.52516]
[1753866734977,0.984,3808.1,3808.0,0.6694]
[1753866735279,2.4185,3808.1,3808.0,0.7852]
[1753866735482,0.423,3808.9,3808.6,0.52512]
[1753866735772,0.423,3809.4,3808.6,0.0902]
[1753866735977,1.4527,3809.4,3809.3,0.2462]
[1753866736178,2.4185,3809.4,3809.3,0.26]
[1753866736575,1.0115,3811.0,3809.5,0.0937]
[1753866736778,0.984,3810.3,3810.2,0.1801]
[1753866737081,0.984,3810.3,3809.7,0.0103]
[1753866737082,2.4185,3810.2,3810.1,0.52491]
[1753866738377,2.4185,3810.2,3809.9,0.0937]
[1753866738585,2.4185,3810.2,3809.4,1.32284]
[1753866738586,1.5565,3809.9,3809.7,0.60487]
[1753866738777,2.4185,3809.8,3809.7,0.60487]
[1753866739082,1.9955,3809.6,3809.5,0.0799]
[1753866739282,0.984,3809.6,3809.4,0.52502]
[1753866739484,2.4185,3809.5,3809.4,0.52502]
[1753866740081,0.984,3809.5,3809.3,0.60492]
[1753866740386,2.4185,3809.4,3809.3,0.60492]
[1753866740879,0.984,3809.4,3809.2,0.52504]
[1753866741186,1.3122,3810.5,3809.2,0.62134]
[1753866741187,2.4185,3809.3,3809.2,0.62134]
[1753866741484,2.4185,3809.3,3809.2,0.74914]
[1753866742982,2.4185,3809.3,3809.2,0.52504]
[1753866744079,1.9795,3809.3,3809.2,0.73174]
[1753866744482,0.423,3809.3,3809.2,0.73174]
[1753866745185,0.4397,3809.6,3809.5,0.7317]
[1753866746089,2.4038,3809.6,3809.5,0.6045]
[1753866746586,2.4038,3809.6,3809.5,0.7317]
[1753866747179,2.4038,3809.5,3809.4,0.52501]
[1753866748081,0.9461,3809.5,3809.3,0.52503]
[1753866748289,2.4038,3809.2,3808.7,1.31278]
[1753866748486,0.9461,3808.8,3808.7,0.73181]
[1753866748686,0.4397,3808.6,3807.8,0.19433539]
[1753866748880,2.4038,3807.9,3807.8,0.19433539]
[1753866749184,2.36893033,3807.9,3807.8,0.19433539]
[1753866752182,2.89415033,3807.9,3807.8,0.19433539]
[1753866752389,2.36893033,3807.9,3807.8,0.19433539]
[1753866753190,2.36893033,3807.9,3807.8,0.88443539]
[1753866753892,2.36893033,3807.9,3807.8,0.93853539]
[1753866755084,1.59663033,3807.9,3807.8,0.93853539]
[1753866755486,1.90313033,3807.9,3807.8,0.93853539]
[1753866755691,2.36893033,3807.9,3807.8,0.93853539]
[1753866756388,0.4397,3807.9,3807.8,0.93853539]
[1753866756792,0.4397,3807.9,3807.8,0.97233539]
[1753866757295,0.9919,3807.9,3807.8,0.93853539]
[1753866757496,2.4038,3807.9,3807.8,0.93853539]
[1753866759094,2.4038,3807.9,3807.8,0.19433539]
[1753866762291,0.52535,3807.0,3806.5,0.5254]
[1753866762497,2.4038,3806.6,3806.5,0.8295]
[1753866762697,2.4038,3806.6,3806.5,1.5968]
[1753866762899,2.4038,3806.6,3806.5,1.7898]
[1753866763093,0.4397,3806.6,3806.5,1.7898]
[1753866763492,0.4397,3806.6,3806.3,0.0338]
[1753866763493,1.938,3806.9,3806.8,1.78977]
[1753866763699,1.4983,3806.9,3806.6,0.5254]
[1753866763906,1.1171,3806.7,3806.6,0.6129]
[1753866764106,0.4397,3807.3,3806.6,1.0714]
[1753866764402,1.3858,3806.5,3806.4,1.59682]
[1753866764604,2.4038,3806.5,3806.4,1.78982]
[1753866765105,2.4038,3806.5,3806.4,1.2644]
[1753866765404,2.37693,3807.1,3807.0,1.0714]
[1753866765701,2.37693,3807.1,3806.8,0.193]
[1753866765702,2.92913,3807.1,3806.8,0.193]
[1753866765908,2.4038,3806.9,3806.8,0.7085]
[1753866766109,2.4038,3806.9,3806.8,1.59677]
[1753866766316,2.4038,3806.9,3806.8,1.78977]
[1753866766810,1.0149,3806.9,3806.8,1.78977]
[1753866767015,2.4038,3807.3,3807.2,1.78972]
[1753866768808,2.4038,3807.3,3807.2,0.7085]
[1753866769010,0.9055,3806.9,3806.4,0.4044]
[1753866769210,2.4038,3806.8,3806.7,1.23388]
[1753866769511,2.4038,3806.8,3806.7,1.59678]
[1753866769714,6.56620546,3807.9,3806.1,10.52713546]
[1753866769715,1.4119,3806.7,3806.6,1.288]
[1753866769905,2.4038,3806.7,3806.6,1.7898]
[1753866770111,0.4397,3806.7,3806.6,1.7898]
[1753866770312,0.4397,3806.7,3806.6,1.8236]
[1753866771018,0.4397,3806.7,3806.6,1.7898]
[1753866771815,1.9402,3806.7,3806.6,1.7898]
[1753866772016,2.369,3806.7,3806.6,1.7898]
[1753866773514,1.9402,3806.7,3806.6,1.7898]
[1753866773713,0.7084,3806.7,3806.6,1.7898]
[1753866774111,2.3602,3806.7,3806.6,1.7898]
[1753866775419,2.3602,3806.7,3806.6,1.5968]
[1753866775625,2.3602,3806.7,3806.6,1.5427]
[1753866775919,2.3602,3806.7,3806.6,1.2339]
[1753866776321,2.3602,3806.7,3806.6,1.7416]
[1753866778424,2.3602,3806.7,3806.6,1.2162]
[1753866778620,42.11311,3807.8,3806.3,0.502]
[1753866778621,0.5883,3806.4,3806.3,0.502]
[1753866778817,2.32559788,3806.4,3806.3,0.7905]
[1753866779214,2.3694,3806.3,3806.2,0.5321]
[1753866779420,2.3694,3806.3,3805.8,0.19443751]
[1753866779421,1.2656,3805.9,3805.8,0.19443751]
[1753866779616,2.3694,3805.9,3805.8,1.29783751]
[1753866780016,2.3694,3805.9,3805.8,1.47813751]
[1753866780824,2.3694,3805.9,3805.8,1.29783751]
[1753866781026,2.3694,3805.9,3805.8,0.90043751]
[1753866781226,2.3694,3805.9,3805.8,0.19443751]
[1753866781421,2.3694,3805.9,3805.8,1.00933751]
[1753866781624,0.427,3805.9,3805.8,1.47813751]
[1753866781826,0.2906,3806.2,3806.1,0.6802]
[1753866782023,0.5254,3806.7,3806.1,1.20566]
[1753866782223,0.6679,3806.7,3806.6,0.6802]
[1753866782528,1.4038,3806.7,3806.0,0.4232]
[1753866782732,2.3694,3806.7,3806.6,0.706]
[1753866783427,2.3694,3806.7,3806.6,0.2828]
[1753866783625,2.3694,3806.4,3806.3,0.706]
[1753866783929,0.9656,3806.2,3806.1,1.34036]
[1753866784135,2.3694,3806.2,3806.1,1.34036]
[1753866784432,2.3694,3806.2,3806.1,1.62886]
[1753866784822,2.3694,3806.2,3806.1,1.80916]
[1753866785833,1.9406,3806.2,3806.1,1.80916]
[1753866786829,0.427,3806.2,3806.1,1.80916]
[1753866787029,1.9406,3806.6,3806.5,1.78882]
[1753866787234,1.5633,3806.6,3806.5,1.78882]
[1753866787434,1.0153,3806.6,3806.5,1.78882]
[1753866787636,1.5633,3806.6,3806.5,1.78882]
[1753866787937,1.9406,3806.6,3806.5,1.78882]
[1753866788132,0.7176,3806.6,3806.5,1.78882]
[1753866788324,0.427,3806.6,3806.5,1.78882]
[1753866788533,0.427,3806.6,3806.5,1.85292]
[1753866789132,0.2977,3807.2,3807.1,1.43573]
[1753866789329,0.2977,3807.2,3807.1,1.85893]
[1753866789330,0.9656,3807.2,3807.1,1.85893]
[1753866789529,0.9656,3807.6,3807.2,1.3961]
[1753866789730,1.3944,3807.5,3807.4,0.9104]
[1753866790132,1.3944,3807.5,3807.4,0.2828]
[1753866791130,2.3694,3807.5,3807.4,0.2828]
[1753866791637,2.3694,3807.5,3807.3,0.4232]
[1753866791838,2.3694,3807.4,3807.3,0.5253]
[1753866792537,2.3694,3807.4,3807.3,2.4358]
[1753866793031,0.9768,3807.8,3807.3,2.3065]
[1753866793237,1.9424,3808.2,3808.1,0.52519]
[1753866793634,2.3694,3808.2,3808.1,2.43569]
[1753866793936,0.9656,3808.2,3807.7,0.5769]
[1753866794132,2.3694,3807.7,3807.6,2.43576]
[1753866797131,0.9768,3807.6,3807.1,0.4232]
[1753866797337,2.3694,3807.5,3807.4,0.52528]
[1753866797526,2.3694,3807.4,3807.3,0.5253]
[1753866799034,0.9656,3807.2,3807.1,1.85893]
[1753866799236,2.3694,3807.2,3807.1,1.85893]
[1753866799529,2.3694,3807.2,3807.0,0.52534]
[1753866799735,2.3694,3807.0,3806.9,0.52535]
[1753866800442,2.3694,3807.0,3806.9,2.43585]
[1753866800832,2.3694,3807.0,3806.9,2.83185]
[1753866802640,2.3694,3807.0,3806.9,1.85895]
[1753866804143,1.7942,3806.3,3806.2,0.52545]
[1753866804342,2.0695,3806.2,3806.1,1.51807]
[1753866804541,2.3473,3806.2,3806.1,1.51807]
[1753866804839,2.3473,3806.2,3806.1,1.89667]
[1753866805037,2.3473,3806.2,3806.1,2.42687]
[1753866805235,2.00577884,3806.2,3806.1,2.42687]
[1753866805438,2.00577884,3806.2,3806.1,2.84317]
[1753866805635,2.00577884,3806.2,3806.1,2.3177]
[1753866806347,0.9114,3806.8,3806.7,2.3177]
[1753866806540,1.473,3806.8,3806.7,2.3177]
[1753866806740,0.4604,3807.0,3806.7,2.84308]
[1753866807055,0.9199,3806.8,3806.7,1.47209]
[1753866807251,40.8,3807.8,3806.7,1.47209]
[1753866807441,0.9199,3806.8,3806.7,1.7875]
[1753866807745,2.3473,3806.8,3806.7,1.7875]
[1753866808248,2.3473,3806.8,3806.7,2.3177]
[1753866808545,2.3473,3806.8,3805.9,1.31376]
[1753866808740,0.9199,3806.8,3806.7,0.2665]
[1753866809046,0.9199,3806.5,3806.4,0.5681]
[1753866809250,2.3473,3806.5,3806.4,0.5681]
[1753866809446,1.7052,3806.4,3806.3,0.2665]
[1753866809747,0.9199,3806.4,3806.3,1.7875]
[1753866809941,0.52541,3806.6,3806.3,2.3177]
[1753866810146,0.5531,3807.0,3806.9,0.9467]
[1753866810447,1.473,3807.0,3806.9,2.3177]
[1753866810646,2.3473,3807.0,3806.9,2.3177]
[1753866812450,0.9199,3807.0,3806.9,2.3177]
[1753866812851,0.8743,3807.6,3807.2,2.0512]
[1753866813050,2.3473,3807.5,3807.4,2.84298]
[1753866813247,0.9199,3807.8,3807.7,1.47194]
[1753866813448,2.3473,3807.8,3807.7,2.84294]
[1753866813648,0.52516,3808.4,3807.8,0.52524]
[1753866813847,2.3473,3807.9,3807.8,2.84294]
[1753866820550,0.5616,3808.4,3808.3,2.31267]
[1753866820755,2.3473,3808.6,3808.5,2.84284]
[1753866820954,0.9199,3808.7,3808.6,1.89633]
[1753866821152,1.473,3808.7,3808.6,2.84283]
[1753866821353,2.3473,3808.7,3808.6,2.84283]
[1753866821552,1.3803,3809.1,3809.0,0.52507]
[1753866821854,2.3473,3809.1,3809.0,2.84277]
[1753866822057,2.3473,3809.1,3809.0,2.3177]
[1753866822360,2.3473,3809.1,3809.0,1.3712]
[1753866822551,2.3473,3809.1,3809.0,0.9467]
[1753866823055,2.3473,3809.1,3809.0,2.3177]
[1753866824158,2.3473,3809.1,3808.9,0.52508]
[1753866824360,2.3473,3809.0,3808.9,0.79158]
[1753866824560,2.3473,3809.0,3808.9,1.51768]
[1753866824858,2.3473,3809.0,3808.9,2.84278]
[1753866825453,2.3473,3809.0,3808.9,2.31258]
[1753866826554,2.3473,3809.0,3808.3,6.5869]
[1753866826555,0.6421,3808.4,3808.3,5.9542]
[1753866826759,2.3473,3808.4,3808.3,2.84287]
[1753866826959,2.3473,3808.4,3808.3,8.0936609]
[1753866827158,2.3473,3808.4,3808.3,1.47187]
[1753866827366,2.3473,3808.4,3808.3,2.31267]
[1753866827556,2.3473,3808.4,3808.3,0.79167]
[1753866827766,2.3473,3808.3,3808.2,0.52517]
[1753866828065,2.3473,3808.3,3808.2,0.2665]
[1753866828269,0.5252,3808.1,3807.9,5.274]
[1753866828565,1.7942,3808.0,3807.9,5.5405]
[1753866828761,2.3473,3808.0,3807.9,5.5405]
[1753866829463,2.3473,3808.0,3807.9,5.274]
[1753866829856,2.3473,3807.6,3807.5,0.79177]
[1753866830066,0.6361,3806.9,3806.8,1.89657]
[1753866830263,1.8697837,3806.9,3806.8,2.42677]
[1753866830764,1.8697837,3806.9,3806.8,2.84307]
[1753866831064,1.4093837,3806.9,3806.8,2.84307]
[1753866831563,0.5784837,3806.9,3806.8,2.84307]
[1753866833866,1.8312837,3806.9,3806.8,2.84307]
[1753866834164,2.2598837,3806.9,3806.8,2.84307]
[1753866834366,0.9499,3805.9,3805.5,0.4632]
[1753866834567,2.3574,3805.9,3805.8,1.23043751]
[1753866834764,2.3574,3805.9,3805.8,1.59773751]
[1753866835066,2.3574,3805.9,3805.8,2.16143751]
[1753866835262,41.32544,3806.4,3805.8,2.16143751]
[1753866835263,0.676,3806.0,3805.9,0.9401]
[1753866835569,2.3574,3806.0,3805.8,0.19443751]
[1753866835761,2.3574,3805.9,3805.8,0.19443751]
[1753866837468,2.3574,3805.9,3805.8,1.54433751]
[1753866837664,2.3574,3805.9,3805.8,2.57123751]
[1753866838064,0.9499,3806.3,3806.2,0.2637]
[1753866838259,0.9499,3806.3,3806.2,0.6735]
[1753866838465,0.9499,3806.3,3806.2,1.3499]
[1753866838770,2.3574,3806.3,3806.2,1.3499]
[1753866839165,2.3574,3806.3,3806.2,0.6735]
[1753866839366,2.3574,3806.3,3806.2,1.3499]
[1753866839566,2.3574,3806.3,3806.2,1.8131]
[1753866840272,2.3574,3806.3,3806.2,2.3768]
[1753866840461,0.8562,3807.2,3806.5,0.9826]
[1753866840664,1.07658,3807.5,3807.0,0.52535]
[1753866840864,5.83511559,3807.7,3807.6,0.9401]
[1753866841062,0.5806,3807.2,3807.1,1.15633]
[1753866841268,2.3574,3807.2,3807.1,1.15633]
[1753866841467,2.3574,3807.5,3807.4,1.87519]
[1753866841668,1.9288,3807.5,3807.4,2.90209]
[1753866841971,1.9288,3807.5,3807.4,2.3768]
[1753866842173,2.3574,3807.5,3807.4,2.3768]
[1753866842563,2.3574,3807.5,3807.4,1.3499]
[1753866842767,2.3574,3807.5,3807.4,2.3768]
[1753866842768,1.9288,3807.5,3807.4,2.3768]
[1753866842970,2.3574,3807.9,3807.8,0.9401]
[1753866843266,0.9789,3807.8,3806.8,5.25285952]
[1753866843468,2.3574,3806.9,3806.8,0.2637]
[1753866843670,2.3574,3806.9,3806.8,0.6735]
[1753866844573,1.4075,3807.3,3806.2,0.4098]
[1753866844865,1.9288,3806.3,3806.2,2.3768]
[1753866845066,2.3574,3806.3,3806.2,2.3768]
[1753866846971,1.9288,3806.8,3806.7,1.8131]
[1753866847170,2.3574,3806.8,3806.7,1.8131]
[1753866847473,2.3574,3806.8,3806.7,2.3768]
[1753866848575,0.9799,3807.0,3806.0,0.4098]
[1753866848875,1.9288,3806.2,3806.1,0.2637]
[1753866849173,0.9499,3806.0,3805.9,0.67881326]
[1753866849372,2.3574,3806.0,3805.9,0.67881326]
[1753866849775,2.3574,3806.0,3805.9,1.35521326]
[1753866849977,0.4286,3806.7,3806.1,0.4098]
[1753866850275,2.88283,3806.5,3806.4,1.8131]
[1753866850866,2.88283,3806.5,3806.4,1.3499]
[1753866852381,2.3574,3806.5,3806.4,2.3768]
[1753866852682,1.9288,3806.5,3806.4,2.3768]
[1753866852984,0.9499,3806.5,3806.4,2.3768]
[1753866853170,1.9288,3806.8,3806.7,0.9401]
[1753866853370,1.9288,3806.8,3806.7,2.3768]
[1753866853775,2.3574,3806.8,3806.7,2.3768]
[1753866853972,2.3574,3806.8,3806.7,0.6735]
[1753866854376,2.3574,3806.8,3806.7,0.2637]
[1753866854571,2.3574,3806.5,3806.4,1.3499]
[1753866854776,0.9499,3806.3,3806.2,1.19896]
[1753866854972,2.3574,3806.3,3806.2,0.6735]
[1753866855375,2.3574,3806.0,3805.9,0.98791326]
[1753866855581,2.3574,3806.0,3805.9,1.81841326]
[1753866855882,2.3574,3806.0,3805.9,2.38211326]
[1753866856084,1.1319,3806.2,3806.1,1.46557]
[1753866856285,1.8061,3806.6,3806.5,2.3768]
[1753866856478,1.3775,3806.6,3806.5,2.3768]
[1753866856882,1.9288,3806.6,3806.5,2.3768]
[1753866857687,1.3574,3806.6,3806.5,2.3768]
[1753866857882,1.2027,3806.6,3806.5,2.3768]
[1753866858274,1.2027,3806.6,3806.5,1.8131]
[1753866858577,0.9499,3806.0,3805.9,1.35521326]
[1753866858781,1.5012,3806.0,3805.9,1.81841326]
[1753866859181,1.5012,3806.0,3805.9,2.38211326]
[1753866859683,1.9288,3806.0,3805.9,2.38211326]
[1753866860077,0.4276,3806.5,3805.9,2.34596326]
[1753866860385,0.4276,3806.7,3806.4,2.3768]
[1753866860582,1.9288,3806.7,3806.6,2.3768]
[1753866860983,2.3574,3806.7,3806.2,0.4632]
[1753866861188,1.9288,3806.2,3806.1,2.3768]
[1753866861388,2.3363,3806.2,3806.1,1.8131]
[1753866861583,2.3363,3806.2,3806.1,1.3499]
[1753866862689,2.3363,3806.2,3806.1,1.7955]
[1753866864183,1.9288,3806.2,3806.1,2.3249]
[1753866864687,0.52539,3806.8,3806.4,0.52543]
[1753866864987,1.4541,3806.7,3806.6,0.9485]
[1753866865188,1.8616,3806.7,3806.6,1.3462]
[1753866865493,1.8616,3806.7,3806.6,0.3977]
[1753866865788,2.3463,3806.5,3806.4,0.6837]
[1753866866591,2.3463,3806.5,3806.3,0.52543]
[1753866866592,0.5555,3806.3,3806.2,0.3977]
[1753866866788,2.3463,3806.3,3806.2,0.3977]
[1753866866982,0.2612,3806.1,3806.0,1.1293]
[1753866867194,1.9388,3806.1,3806.0,1.91959]
[1753866867696,2.3463,3806.1,3806.0,1.87169]
[1753866868092,2.3463,3806.1,3806.0,1.3462]
[1753866869187,1.9388,3806.1,3806.0,2.3212]
[1753866869997,2.46422,3806.5,3806.4,2.3212]
[1753866870185,2.46422,3806.5,3806.4,1.7918]
[1753866870388,2.87172,3806.5,3806.4,0.6837]
[1753866870591,2.87172,3806.5,3806.4,0.3977]
[1753866871198,2.87172,3806.5,3806.4,0.6837]
[1753866872692,0.52546,3806.3,3806.2,0.52545]
[1753866872898,1.45416,3806.3,3806.2,0.52545]
[1753866873097,2.87176,3806.3,3806.2,0.92315]
[1753866873401,2.87176,3806.3,3806.2,1.20915]
[1753866873801,2.3463,3806.0,3805.9,0.40301326]
[1753866874100,2.3463,3806.0,3805.9,1.21451326]
[1753866874400,2.3463,3806.0,3805.9,0.68901326]
[1753866874698,2.3463,3806.0,3805.9,0.00531326]
[1753866874901,7.60122978,3806.0,3805.9,0.00531326]
[1753866875291,48.40122978,3806.0,3805.9,0.00531326]
[1753866877798,0.3732,3806.0,3805.9,1.35151326]
[1753866878004,0.2943,3806.5,3806.4,2.84663]
[1753866878197,0.9287,3807.0,3806.9,2.84655]
[1753866878397,0.9287,3806.1,3806.0,0.5958]
[1753866878592,1.9388,3806.0,3805.9,0.95381326]
[1753866878793,1.9048,3806.0,3805.9,0.00531326]
[1753866878997,2.3463,3806.0,3805.9,0.00531326]
[1753866880300,7.60122978,3806.0,3805.9,0.00531326]
[1753866881704,7.60122978,3806.0,3805.9,0.40301326]
[1753866882601,7.60122978,3806.0,3805.9,0.99881326]
[1753866884505,7.60122978,3806.0,3805.9,1.44441326]
[1753866884702,7.60122978,3806.0,3805.9,1.79711326]
[1753866885009,1.9388,3806.0,3805.9,2.32651326]
[1753866885406,1.0101,3806.7,3806.1,0.9485]
[1753866885605,2.46419,3806.7,3806.6,2.3212]
[1753866885807,8.12661978,3806.7,3806.6,0.9935]
[1753866886005,8.12661978,3806.7,3806.6,0.6837]
[1753866886506,8.12661978,3806.7,3806.6,0.3977]
[1753866886709,2.09104,3806.3,3806.2,0.9935]
[1753866886901,2.46429,3806.0,3805.9,1.79711326]
[1753866887101,2.87179,3806.0,3805.9,0.99881326]
[1753866887311,0.52549,3806.1,3806.0,0.92317]
[1753866887615,2.46429,3806.1,3806.0,1.7918]
[1753866887810,0.4075,3806.0,3805.9,0.40301326]
[1753866888004,2.3463,3806.0,3805.9,0.68901326]
[1753866888408,2.3463,3806.0,3805.9,0.99881326]
[1753866888612,1.9388,3806.0,3805.9,1.79711326]
[1753866889206,2.3463,3806.0,3805.9,1.79711326]
[1753866889912,1.9388,3806.0,3805.9,1.79711326]
[1753866890113,1.9388,3806.0,3805.9,2.32651326]
[1753866891309,1.9388,3806.0,3805.9,0.99881326]
[1753866891511,2.3349,3806.0,3805.9,0.40301326]
[1753866892513,2.3349,3806.0,3805.9,0.00531326]
[1753866893110,2.3349,3806.0,3805.9,0.41681326]
[1753866893512,2.3349,3806.0,3805.9,0.67821326]
[1753866893812,2.3349,3806.0,3805.9,0.98081326]
[1753866895515,2.3349,3806.0,3805.9,1.42271326]
[1753866899919,2.3349,3806.0,3805.9,0.26671326]
[1753866900125,2.3349,3806.0,3805.9,1.42271326]
[1753866900523,2.3349,3806.0,3805.9,2.32471326]
[1753866900722,1.9388,3806.0,3805.9,2.32471326]
[1753866901425,2.3349,3806.0,3805.9,2.32471326]
[1753866901720,1.9388,3806.0,3805.9,0.00531326]
[1753866901921,1.4118,3805.9,3804.9,0.4115]
[1753866902228,1.9747,3805.3,3805.2,2.3194]
[1753866902425,42.7747,3805.3,3805.2,2.3194]
[1753866902626,48.02962978,3805.3,3805.2,2.3194]
[1753866903121,40.8,3805.3,3805.2,2.3194]
[1753866903624,41.352,3805.3,3805.2,2.3194]
[1753866904018,1.3847,3805.3,3805.2,2.3194]
[1753866904216,1.04303784,3805.3,3805.2,2.3194]
[1753866905918,40.8,3805.4,3805.3,1.44128]
[1753866906120,1.4227,3805.5,3805.4,2.84496]
[1753866906319,0.52553,3805.7,3805.6,2.3194]
[1753866906518,1.3136,3806.4,3804.7,2.62833]
[1753866906519,0.6753,3806.0,3805.9,2.3194]
[1753866907529,0.89444,3806.4,3806.3,2.43333]
[1753866907729,0.369,3806.4,3806.3,2.84483]
[1753866908531,0.80919,3806.1,3805.9,0.52549]
[1753866908734,0.959,3805.9,3805.8,0.2614]
[1753866908928,2.3708,3805.9,3805.8,0.6729]
[1753866909230,2.3708,3805.9,3805.8,0.9755]
[1753866909430,2.3708,3805.9,3805.8,1.3272]
[1753866909633,1.9747,3805.9,3805.8,2.3194]
[1753866909937,2.3708,3805.7,3805.6,0.52554]
[1753866910136,2.3708,3805.5,3805.4,0.93706]
[1753866910330,2.3708,3805.5,3805.4,1.50106]
[1753866910631,1.9747,3805.5,3805.4,2.84496]
[1753866910832,1.511,3805.5,3805.4,2.84496]
[1753866912229,1.9747,3805.5,3805.4,2.84496]
[1753866912426,1.45902,3804.3,3804.0,3.92763276]
[1753866912636,0.90238,3803.9,3803.5,0.4419]
[1753866912933,42.25438,3803.9,3803.8,0.45593974]
[1753866913329,42.25438,3803.9,3803.8,0.86743974]
[1753866913836,42.25438,3803.9,3803.8,1.61193974]
[1753866914331,40.8,3803.9,3803.8,2.37383974]
[1753866914539,0.921,3804.2,3804.1,1.3576]
[1753866914837,0.921,3804.3,3804.2,2.1793]
[1753866915139,6.18643088,3804.3,3804.2,1.4174]
[1753866915738,6.18643088,3804.3,3804.2,1.7691]
[1753866916032,6.18643088,3804.3,3804.2,2.1793]
[1753866917030,5.25783088,3804.3,3804.2,2.1793]
[1753866917234,5.25783088,3804.3,3804.0,0.52576]
[1753866917235,0.921,3804.8,3804.7,1.44137]
[1753866917434,0.9286,3804.8,3804.7,2.1793]
[1753866917636,5.25727804,3804.8,3804.7,2.1793]
[1753866917932,0.921,3805.6,3805.5,2.40225]
[1753866918136,1.73705244,3805.6,3805.5,2.1793]
[1753866918330,6.9936396,3805.6,3805.5,2.1793]
[1753866918532,1.73705244,3805.6,3805.5,2.1793]
[1753866918737,1.74465244,3805.6,3805.5,2.1793]
[1753866918931,1.73705244,3805.6,3805.5,1.7691]
[1753866919133,2.26259244,3805.6,3805.5,2.1793]
[1753866919333,1.73705244,3805.6,3805.5,2.1793]
[1753866920236,0.921,3805.6,3805.5,2.1793]
[1753866920841,1.44654,3805.6,3805.5,2.1793]
[1753866921131,0.9286,3805.6,3805.5,2.1793]
[1753866921337,0.921,3805.6,3805.5,2.1793]
[1753866921532,1.4622689,3806.4,3804.4,2.62852]
[1753866921836,7.51076308,3806.3,3806.2,1.4079]
[1753866922040,48.31076308,3806.3,3806.2,1.4079]
[1753866922241,43.05528096,3806.3,3806.2,1.4079]
[1753866922636,0.3646,3805.5,3805.4,1.3558]
[1753866922841,0.8847,3805.5,3805.4,1.88137]
[1753866923241,0.9145,3805.5,3805.4,2.71577]
[1753866923741,6.17012022,3805.5,3805.4,1.4079]
[1753866924137,6.17012022,3805.5,3805.4,0.9681]
[1753866924342,0.3646,3805.1,3805.0,1.09912]
[1753866924542,0.52562,3805.0,3804.8,0.52565]
[1753866924738,0.9145,3804.9,3804.8,0.5735]
[1753866925036,0.8847,3804.9,3804.8,2.28705]
[1753866925244,0.8847,3804.9,3804.8,2.71585]
[1753866926241,5.25562022,3805.1,3805.0,2.71582]
[1753866926442,0.8847,3805.4,3805.3,2.28698]
[1753866926644,0.8847,3805.4,3805.3,2.71578]
[1753866926847,6.17067271,3805.4,3805.3,2.1902]
[1753866927043,6.17067271,3805.4,3805.3,1.4079]
[1753866927244,1.44012,3805.0,3804.9,1.4079]
[1753866927538,0.9145,3805.0,3804.9,1.4079]
[1753866927740,0.9145,3805.0,3804.9,1.93353]
[1753866928141,6.17081085,3805.0,3804.9,1.4079]
[1753866928345,6.17081085,3805.0,3804.9,1.93354]
[1753866928646,6.17081085,3805.0,3804.9,2.71584]
[1753866928841,5.62091085,3805.0,3804.9,2.71584]
[1753866929040,0.8847,3805.4,3805.3,2.42947]
[1753866929244,0.8847,3805.4,3805.3,2.71577]
[1753866929444,6.14101085,3805.4,3805.3,2.71577]
[1753866929743,46.97081085,3805.4,3805.3,2.71577]
[1753866929943,6.17081085,3805.4,3805.3,1.7614]
[1753866930143,6.17081085,3805.4,3805.3,1.4079]
[1753866930345,46.97081085,3805.4,3805.3,2.1902]
[1753866930541,0.3646,3805.4,3805.3,2.1902]
[1753866930748,0.8847,3805.6,3805.5,2.1902]
[1753866930947,0.9145,3805.6,3805.5,2.1902]
[1753866931148,6.17025834,3805.6,3805.5,2.1902]
[1753866931839,6.17025834,3805.6,3805.5,1.4079]
[1753866932043,6.17025834,3805.6,3805.5,0.9681]
[1753866932238,6.18885834,3805.6,3805.5,0.3946]
[1753866932448,6.17025834,3805.6,3805.5,1.4079]
[1753866932844,6.17025834,3805.6,3805.5,1.7614]
[1753866933250,41.32548,3806.1,3806.0,0.927]
[1753866933551,6.14018212,3806.1,3806.0,2.1902]
[1753866933946,0.8847,3806.1,3806.0,2.1902]
[1753866934445,1.41013,3806.4,3806.3,0.927]
[1753866934645,1.43993,3806.4,3806.3,1.7614]
[1753866934845,6.69472171,3806.4,3806.3,1.7614]
[1753866935046,6.16929171,3806.4,3806.3,2.71564]
[1753866935352,6.16929171,3806.4,3806.3,2.1902]
[1753866936848,6.16929171,3806.4,3806.3,1.7614]
[1753866937955,6.16929171,3806.4,3806.3,2.1902]
[1753866940956,6.13949171,3806.4,3806.3,2.1902]
[1753866941556,0.5201,3806.6,3806.4,0.52543]